{"text_format":"1","workbook":"xlsx","n_sheets":3,"sheets":["defaut","fond","tournoi"],"not_rendered":{"charts":0,"images":8,"macros":1,"external_links":0,"defined_names":28,"comments":0,"pivot_tables":0},"unopened":[],"bounds":{"document_bytes":16777216,"sheet_cells":100000,"rows_first":2000,"rows_last":500,"rows_between":2000,"halvings":0,"cell_chars":16384,"cell_head_chars":4096},"cells_cut":0,"cells_raw":0,"read":"whole","date_system":"1900"}

{"sheet":"defaut","index":0,"n_rows":18,"n_cols":5,"rows_kept":18,"cut":false,"hidden":false,"merged":[[5,3,6,3],[17,3,17,4]]}
["jh10rdgf"]
[]
[]
[]
[]
[null,null,null,null,"Boxe française"]
[null,null,null,null,"Niveau 2"]
[]
[]
[]
[]
[]
[]
[]
[]
[]
[]
[null,null,null,"Réalisation : Emmanuel Anquetil - Kristian Walczak - Luc di Pol- 2014 - Niv. 2 - v.0.6-5"]

{"sheet":"fond","index":1,"n_rows":1,"n_cols":6,"rows_kept":1,"cut":false,"hidden":false,"merged":[]}
[null,null,"Tournoi",null,3,"1 boxeur seul"]

{"sheet":"tournoi","index":2,"n_rows":48,"n_cols":40,"rows_kept":48,"cut":false,"hidden":false,"merged":[[39,29,39,34],[15,6,15,12],[40,8,40,15],[40,16,40,23],[40,24,40,27],[32,29,32,33],[35,29,35,33],[26,29,26,33],[23,29,23,33],[21,29,21,38],[22,29,22,33],[22,34,22,38],[35,34,35,38],[36,29,36,33],[36,34,36,38],[39,7,39,27],[29,29,29,33],[29,34,29,38],[30,29,30,33],[30,34,30,38],[31,29,31,33],[31,34,31,38],[32,34,32,38],[33,29,33,33],[33,34,33,38],[34,29,34,33],[34,34,34,38],[26,34,26,38],[27,29,27,33],[27,34,27,38],[28,29,28,33],[28,34,28,38],[23,34,23,38],[24,29,24,33],[24,34,24,38],[25,29,25,33],[25,34,25,38],[4,39,4,40],[3,8,3,10],[3,11,3,13],[3,14,3,16],[3,17,3,19],[3,20,3,22],[3,23,3,27],[3,29,3,38],[4,29,4,30],[4,31,4,32],[4,33,4,34],[4,35,4,36],[4,37,4,38]]}
[]
[null,null,null,"Points :",null,null,null,"Suivi de un ou deux adversaires :",1]
[null,null,null,"Durée :"]
[null,null,null,"Nombre\nd'adversaires\nsuivis :",null,null,null,"Participants","R1",null,null,"R2",null,null,"R3",null,null,"R4",null,null,"R5",null,null,"Total",null,null,null,null,null,"1 espace de jeu - Ordre des rencontres"]
[null,"Nbre Participants",null,1,null,null,null,"NOM, Prénom","V/N/D","#","Points +","V/N/D","#","Points +","V/N/D","#","Points +","V/N/D","#","Points +","V/N/D","#","Points +","V","N","D","#","Points +",null,"2 participants",null,"3 participants",null,"4 participants",null,"5 participants",null,"6 participants"]
[null,null,null,2,null,null,"A",null,null,null,null,null,null,null,null,null,null,null,null,null,null,null,null,{"$f":"COUNTIF(I6:W6,\"V\")","v":0},{"$f":"COUNTIF(I6:W6,\"N\")","v":0},{"$f":"COUNTIF(I6:W6,\"D\")","v":0},{"$f":"SUM(J6,M6,P6,S6,V6)","v":0},{"$f":"SUM(K6,N6,Q6,T6,W6)","v":0},null,"A","B","A","B","A","B","A","B","A","B"]
[null,"Pts victoire :",null,null,null,null,"B",null,null,null,null,null,null,null,null,null,null,null,null,null,null,null,null,{"$f":"COUNTIF(I7:W7,\"V\")","v":0},{"$f":"COUNTIF(I7:W7,\"N\")","v":0},{"$f":"COUNTIF(I7:W7,\"D\")","v":0},{"$f":"SUM(J7,M7,P7,S7,V7)","v":0},{"$f":"SUM(K7,N7,Q7,T7,W7)","v":0},null,null,null,"B","C","C","D","C","D","C","D"]
[null,"Pts défaite :",null,null,null,null,"C",null,null,null,null,null,null,null,null,null,null,null,null,null,null,null,null,0,0,0,0,0,null,null,null,"C","A","A","C","A","E","E","F"]
[null,"Pts nul :",null,null,null,null,"D",null,null,null,null,null,null,null,null,null,null,null,null,null,null,null,null,0,0,0,0,0,null,null,null,null,null,"B","D","B","C","B","C"]
[null,"Pts abandon :",null,null,null,null,"E",null,null,null,null,null,null,null,null,null,null,null,null,null,null,null,null,0,0,0,0,0,null,null,null,null,null,"A","D","D","E","E","D"]
[null,"Pts KO tech. :",null,null,null,null,"F",null,null,null,null,null,null,null,null,null,null,null,null,null,null,null,null,0,0,0,0,0,null,null,null,null,null,"B","C","A","C","C","F"]
[null,null,null,null,null,null,null,null,null,null,null,null,null,null,null,null,null,null,null,null,null,null,null,null,null,null,null,null,null,null,null,null,null,null,null,"B","D","A","E"]
[null,null,null,null,null,null,null,null,null,null,null,null,null,null,null,null,null,null,null,null,null,null,null,null,null,null,null,null,null,null,null,null,null,null,null,"C","E","B","D"]
[null,null,null,null,null,null,null,null,null,null,null,null,null,null,null,null,null,null,null,null,null,null,null,null,null,null,null,null,null,null,null,null,null,null,null,"A","D","A","F"]
[null,null,null,null,null,null,null,null,null,null,null,null,null,null,null,null,null,null,null,null,null,null,null,null,null,null,null,null,null,null,null,null,null,null,null,"B","E","B","E"]
[null,null,null,null,null,null,"Classement",null,null,null,null,null,null,null,null,null,null,null,null,null,null,null,null,null,null,null,null,null,null,null,null,null,null,null,null,null,null,"D","F"]
[null,null,null,null,null,null,null,"NOM, Prénom","V","N","D","#","Pts +",null,null,null,null,null,null,null,null,null,null,null,null,null,null,null,null,null,null,null,null,null,null,null,null,"C","E"]
[null,null,null,null,null,null,"A","Paul",1,0,0,100,50,null,null,null,null,null,null,null,null,null,null,null,null,null,null,null,null,null,null,null,null,null,null,null,null,"A","D"]
[null,null,null,null,null,null,"B","Eric",1,0,1,-89,-37,null,null,null,null,null,null,null,null,null,null,null,null,null,null,null,null,null,null,null,null,null,null,null,null,"B","F"]
[null,null,null,null,null,null,"C","Richard",0,0,1,-11,2,null,null,null,null,null,null,null,null,null,null,null,null,null,null,null,null,null,null,null,null,null,null,null,null,"A","C"]
[null,null,null,null,null,null,"D",null,0,0,0,0,0]
[null,null,null,null,null,null,"E",null,0,0,0,0,0,null,null,null,null,null,null,null,null,null,null,null,null,null,null,null,"N°","Ordre des rencontres",null,null,null,null,null,null,null,null,null,"Etat rencontre"]
[null,null,null,null,null,null,"F",null,0,0,0,0,0,null,null,null,null,null,null,null,null,null,null,null,null,null,null,null,1]
[null,null,null,null,null,null,null,null,null,null,null,null,null,null,null,null,null,null,null,null,null,null,null,null,null,null,null,null,2]
[null,null,null,null,null,null,null,null,null,null,null,null,null,null,null,null,null,null,null,null,null,null,null,null,null,null,null,null,3]
[null,null,null,null,null,null,null,null,null,null,null,null,null,null,null,null,null,null,null,null,null,null,null,null,null,null,null,null,4]
[null,null,null,null,null,null,null,null,null,null,null,null,null,null,null,null,null,null,null,null,null,null,null,null,null,null,null,null,5]
[null,null,null,null,null,null,null,null,null,null,null,null,null,null,null,null,null,null,null,null,null,null,null,null,null,null,null,null,6]
[null,null,null,null,null,null,null,null,null,null,null,null,null,null,null,null,null,null,null,null,null,null,null,null,null,null,null,null,7]
[null,null,null,null,null,null,null,null,null,null,null,null,null,null,null,null,null,null,null,null,null,null,null,null,null,null,null,null,8]
[null,null,null,null,null,null,null,null,null,null,null,null,null,null,null,null,null,null,null,null,null,null,null,null,null,null,null,null,9]
[null,null,null,null,null,null,null,null,null,null,null,null,null,null,null,null,null,null,null,null,null,null,null,null,null,null,null,null,10]
[null,null,null,null,null,null,null,null,null,null,null,null,null,null,null,null,null,null,null,null,null,null,null,null,null,null,null,null,11]
[null,null,null,null,null,null,null,null,null,null,null,null,null,null,null,null,null,null,null,null,null,null,null,null,null,null,null,null,12]
[null,null,null,null,null,null,null,null,null,null,null,null,null,null,null,null,null,null,null,null,null,null,null,null,null,null,null,null,13]
[null,null,null,null,null,null,null,null,null,null,null,null,null,null,null,null,null,null,null,null,null,null,null,null,null,null,null,null,14]
[null,null,null,null,null,null,null,null,null,null,null,null,null,null,null,null,null,null,null,null,null,null,null,null,null,null,null,null,15]
[]
[]
[null,null,null,null,null,null,null,"Bilan élève",null,null,null,null,null,null,null,null,null,null,null,null,null,null,null,null,null,null,null,null,null,"ARMES"]
[null,null,null,null,null,null,null,"Cibles >>>","Tête",null,null,null,null,null,null,null,"Corps",null,null,null,null,null,null,null,"Jambes",null,null,null,null,"Tot.\nDirects","Tot.\nCrochets","Tot.\nUppercuts","Tot.\nFouettés","Tot.\nChassés","Tot.\nRevers"]
[null,null,null,null,null,null,null,"Armes >>>","Fouetté","Chassé","Revers","TOTAL","Direct","Crochet","Uppercut","TOTAL","Fouetté","Chassé","Revers","TOTAL","Direct","Crochet","Uppercut","TOTAL","Fouetté","Chassé","Revers","TOTAL"]
[null,null,null,null,null,null,"A"]
[null,null,null,null,null,null,"B"]
[null,null,null,null,null,null,"C"]
[null,null,null,null,null,null,"D"]
[null,null,null,null,null,null,"E"]
[null,null,null,null,null,null,"F"]